fUST/lending_fUST_20260517
["ID","MTS","AMOUNT","RATE_DAILY","PERIOD"]
[422521939,1779030639000,-500.0,0.00010958,2]
[422521943,1779030639000,-500.0,0.00010958,2]
[422521945,1779030639000,-500.0,0.00010958,2]
[422522014,1779030640000,-500.0,0.00010958,2]
[422522024,1779030640000,-562.6,0.00010958,2]
[422522017,1779030640000,-649.44,0.00010958,2]
[422522015,1779030640000,-500.0,0.00010958,2]
[422522025,1779030640000,-540.64,0.00010958,2]
[422522018,1779030640000,-500.0,0.00010958,2]
[422522019,1779030640000,-557.26802676,0.00010958,2]
[422522016,1779030640000,-500.0,0.00010958,2]
[422522021,1779030640000,-500.0,0.00010958,2]
[422522026,1779030640000,-500.0,0.00010958,2]
[422522020,1779030640000,-500.0,0.00010958,2]
[422522032,1779030640000,-500.0,0.00010958,2]
[422522029,1779030640000,-500.0,0.00010958,2]
[422522030,1779030640000,-500.0,0.00010958,2]
[422522034,1779030640000,-2745.93668852,0.00010958,2]
[422522033,1779030640000,-500.0,0.00010958,2]
[422522031,1779030640000,-500.0,0.00010958,2]
[422522027,1779030640000,-500.0,0.00010958,2]
[422522035,1779030640000,-500.0,0.00010958,2]
[422522036,1779030640000,-500.0,0.00010958,2]
[422522038,1779030640000,-500.0,0.00010958,2]
[422522047,1779030640000,-500.0,0.00010958,2]
[422522037,1779030640000,-500.0,0.00010958,2]
[422522023,1779030640000,-500.0,0.00010958,2]
[422522041,1779030640000,-500.0,0.00010958,2]
[422522028,1779030640000,-520.92,0.00010958,2]
[422522013,1779030640000,-500.0,0.00010958,2]
[422521997,1779030640000,-1545.78,0.00010958,2]
[422522010,1779030640000,-583.47,0.00010958,2]
[422522040,1779030640000,-500.0,0.00010958,2]
[422521991,1779030640000,-603.96,0.00010958,2]
[422521992,1779030640000,-500.0,0.00010958,2]
[422521989,1779030640000,-500.0,0.00010958,2]
[422521984,1779030640000,-500.0,0.00010958,2]
[422521990,1779030640000,-500.0,0.00010958,2]
[422521985,1779030640000,-500.51,0.00010958,2]
[422521987,1779030640000,-500.0,0.00010958,2]
[422521988,1779030640000,-500.0,0.00010958,2]
[422521994,1779030640000,-500.0,0.00010958,2]
[422521993,1779030640000,-521.4,0.00010958,2]
[422521995,1779030640000,-500.0,0.00010958,2]
[422522012,1779030640000,-500.0,0.00010958,2]
[422521996,1779030640000,-500.0,0.00010958,2]
[422521998,1779030640000,-500.0,0.00010958,2]
[422522001,1779030640000,-500.0,0.00010958,2]
[422522002,1779030640000,-520.92,0.00010958,2]
[422522000,1779030640000,-500.0,0.00010958,2]
[422522004,1779030640000,-500.0,0.00010958,2]
[422522009,1779030640000,-583.5,0.00010958,2]
[422522005,1779030640000,-500.0,0.00010958,2]
[422522008,1779030640000,-897.03,0.00010958,2]
[422522007,1779030640000,-500.0,0.00010958,2]
[422522011,1779030640000,-500.0,0.00010958,2]
[422522003,1779030640000,-500.0,0.00010958,2]
[422522006,1779030640000,-500.0,0.00010958,2]
[422521999,1779030640000,-603.36,0.00010958,2]
[422522039,1779030640000,-500.0,0.00010958,2]
[422522075,1779030640000,-500.0,0.00010958,2]
[422522044,1779030640000,-1870.61,0.00010958,2]
[422522072,1779030640000,-500.0,0.00010958,2]
[422522081,1779030640000,-500.0,0.00010958,2]
[422522080,1779030640000,-500.0,0.00010958,2]
[422522079,1779030640000,-500.0,0.00010958,2]
[422522078,1779030640000,-500.0,0.00010958,2]
[422522084,1779030640000,-500.0,0.00010958,2]
[422522074,1779030640000,-500.0,0.00010958,2]
[422522073,1779030640000,-511.831592,0.00010958,2]
[422522086,1779030640000,-500.0,0.00010958,2]
[422522098,1779030640000,-500.0,0.00010958,2]
[422522097,1779030640000,-802.81,0.00010958,2]
[422522101,1779030640000,-500.0,0.00010958,2]
[422522082,1779030640000,-500.0,0.00010958,2]
[422522099,1779030640000,-500.0,0.00010958,2]
[422522094,1779030640000,-539.44,0.00010958,2]
[422522092,1779030640000,-500.0,0.00010958,2]
[422522087,1779030640000,-317.10906323,0.00010958,2]
[422522089,1779030640000,-500.0,0.00010958,2]
[422522095,1779030640000,-500.0,0.00010958,2]
[422522093,1779030640000,-500.0,0.00010958,2]
[422522091,1779030640000,-500.0,0.00010958,2]
[422522103,1779030640000,-500.0,0.00010958,2]
[422522102,1779030640000,-500.0,0.00010958,2]
[422522105,1779030640000,-500.0,0.00010958,2]
[422522104,1779030640000,-500.0,0.00010958,2]
[422522043,1779030640000,-1131.24,0.00010958,2]
[422522096,1779030640000,-542.12,0.00010958,2]
[422522076,1779030640000,-500.0,0.00010958,2]
[422522100,1779030640000,-500.0,0.00010958,2]
[422522068,1779030640000,-500.0,0.00010958,2]
[422522077,1779030640000,-500.0,0.00010958,2]
[422522045,1779030640000,-622.11,0.00010958,2]
[422522046,1779030640000,-500.0,0.00010958,2]
[422522042,1779030640000,-500.0,0.00010958,2]
[422522048,1779030640000,-500.0,0.00010958,2]
[422522051,1779030640000,-504.63,0.00010958,2]
[422522050,1779030640000,-500.0,0.00010958,2]
[422522054,1779030640000,-500.0,0.00010958,2]
[422522053,1779030640000,-403.64018579,0.00010958,2]
[422522049,1779030640000,-500.0,0.00010958,2]
[422522055,1779030640000,-500.0,0.00010958,2]
[422522057,1779030640000,-500.0,0.00010958,2]
[422522058,1779030640000,-500.0,0.00010958,2]
[422522052,1779030640000,-500.0,0.00010958,2]
[422522056,1779030640000,-508.47,0.00010958,2]
[422522063,1779030640000,-182.90329851,0.00010958,2]
[422522064,1779030640000,-500.0,0.00010958,2]
[422522066,1779030640000,-500.0,0.00010958,2]
[422522067,1779030640000,-500.0,0.00010958,2]
[422522070,1779030640000,-500.0,0.00010958,2]
[422522065,1779030640000,-500.0,0.00010958,2]
[422522069,1779030640000,-210.30318688,0.00010958,2]
[422522060,1779030640000,-500.0,0.00010958,2]
[422522071,1779030640000,-1451.84,0.00010958,2]
[422522061,1779030640000,-661.58,0.00010958,2]
[422522059,1779030640000,-978.26,0.00010958,2]
[422522062,1779030640000,-500.0,0.00010958,2]
[422522151,1779030641000,-500.0,0.00010958,2]
[422522148,1779030641000,-500.0,0.00010958,2]
[422522152,1779030641000,-500.0,0.00010958,2]
[422522149,1779030641000,-500.0,0.00010958,2]
[422522145,1779030641000,-629.70958262,0.00010958,2]
[422522144,1779030641000,-2580.967932,0.00010958,2]
[422522153,1779030641000,-500.0,0.00010958,2]
[422522146,1779030641000,-204.285941,0.00010958,2]
[422522154,1779030641000,-500.0,0.00010958,2]
[422522147,1779030641000,-500.0,0.00010958,2]
[422522138,1779030641000,-500.0,0.00010958,2]
[422522143,1779030641000,-1361.02,0.00010958,2]
[422522142,1779030641000,-583.42,0.00010958,2]
[422522150,1779030641000,-500.0,0.00010958,2]
[422522164,1779030641000,-500.0,0.00010958,2]
[422522158,1779030641000,-500.05,0.00010958,2]
[422522156,1779030641000,-500.0,0.00010958,2]
[422522157,1779030641000,-500.0,0.00010958,2]
[422522166,1779030641000,-500.0,0.00010958,2]
[422522167,1779030641000,-500.0,0.00010958,2]
[422522168,1779030641000,-1206.68,0.00010958,2]
[422522159,1779030641000,-586.81744297,0.00010958,2]
[422522165,1779030641000,-500.0,0.00010958,2]
[422522161,1779030641000,-500.0,0.00010958,2]
[422522163,1779030641000,-500.0,0.00010958,2]
[422522162,1779030641000,-500.0,0.00010958,2]
[422522160,1779030641000,-500.0,0.00010958,2]
[422522169,1779030641000,-500.0,0.00010958,2]
[422522141,1779030641000,-500.0,0.00010958,2]
[422522155,1779030641000,-500.0,0.00010958,2]
[422522139,1779030641000,-500.0,0.00010958,2]
[422522106,1779030641000,-374.34987498,0.00010958,2]
[422522132,1779030641000,-500.0,0.00010958,2]
[422522109,1779030641000,-500.0,0.00010958,2]
[422522107,1779030641000,-500.0,0.00010958,2]
[422522115,1779030641000,-500.0,0.00010958,2]
[422522113,1779030641000,-500.0,0.00010958,2]
[422522172,1779030641000,-500.0,0.00010958,2]
[422522114,1779030641000,-500.0,0.00010958,2]
[422522111,1779030641000,-500.0,0.00010958,2]
[422522112,1779030641000,-500.0,0.00010958,2]
[422522110,1779030641000,-500.0,0.00010958,2]
[422522117,1779030641000,-500.0,0.00010958,2]
[422522116,1779030641000,-500.0,0.00010958,2]
[422522128,1779030641000,-500.0,0.00010958,2]
[422522127,1779030641000,-500.0,0.00010958,2]
[422522118,1779030641000,-562.61,0.00010958,2]
[422522136,1779030641000,-500.0,0.00010958,2]
[422522120,1779030641000,-500.0,0.00010958,2]
[422522119,1779030641000,-500.0,0.00010958,2]
[422522124,1779030641000,-500.0,0.00010958,2]
[422522122,1779030641000,-500.0,0.00010958,2]
[422522126,1779030641000,-500.0,0.00010958,2]
[422522121,1779030641000,-278.788202,0.00010958,2]
[422522123,1779030641000,-500.0,0.00010958,2]
[422522137,1779030641000,-500.0,0.00010958,2]
[422522134,1779030641000,-517.71187255,0.00010958,2]
[422522140,1779030641000,-500.0,0.00010958,2]
[422522133,1779030641000,-500.0,0.00010958,2]
[422522129,1779030641000,-500.0,0.00010958,2]
[422522131,1779030641000,-500.0,0.00010958,2]
[422522135,1779030641000,-569.51,0.00010958,2]
[422522130,1779030641000,-500.0,0.00010958,2]
[422522125,1779030641000,-500.0,0.00010958,2]
[422522170,1779030641000,-500.0,0.00010958,2]
[422522171,1779030641000,-541.75,0.00010958,2]
[422522181,1779030641000,-645.96,0.00010958,2]
[422522206,1779030641000,-5429.46,0.00010958,2]
[422522214,1779030641000,-500.0,0.00010958,2]
[422522222,1779030641000,-668.95,0.00010958,2]
[422522211,1779030641000,-500.0,0.00010958,2]
[422522221,1779030641000,-500.0,0.00010958,2]
[422522213,1779030641000,-643.88856597,0.00010958,2]
[422522217,1779030641000,-500.0,0.00010958,2]
[422522210,1779030641000,-500.0,0.00010958,2]
[422522219,1779030641000,-2215.92,0.00010958,2]
[422522212,1779030641000,-500.0,0.00010958,2]
[422522220,1779030641000,-500.0,0.00010958,2]
[422522215,1779030641000,-625.07,0.00010958,2]
[422522216,1779030641000,-500.0,0.00010958,2]
[422522218,1779030641000,-500.0,0.00010958,2]
[422522209,1779030641000,-500.0,0.00010958,2]
[422522224,1779030641000,-500.0,0.00010958,2]
[422522231,1779030641000,-586.8,0.00010958,2]
[422522235,1779030641000,-500.0,0.00010958,2]
[422522230,1779030641000,-500.0,0.00010958,2]
[422522228,1779030641000,-842.03,0.00010958,2]
[422522226,1779030641000,-844.71,0.00010958,2]
[422522234,1779030641000,-837.07,0.00010958,2]
[422522225,1779030641000,-500.0,0.00010958,2]
[422522227,1779030641000,-898.68,0.00010958,2]
[422522229,1779030641000,-500.0,0.00010958,2]
[422522233,1779030641000,-500.0,0.00010958,2]
[422522232,1779030641000,-500.0,0.00010958,2]
[422522236,1779030641000,-500.0,0.00010958,2]
[422522238,1779030641000,-562.58,0.00010958,2]
[422522177,1779030641000,-500.0,0.00010958,2]
[422522223,1779030641000,-500.0,0.00010958,2]
[422522207,1779030641000,-500.0,0.00010958,2]
[422522237,1779030641000,-500.0,0.00010958,2]
[422522205,1779030641000,-500.0,0.00010958,2]
[422522198,1779030641000,-1279.9,0.00010958,2]
[422522174,1779030641000,-500.0,0.00010958,2]
[422522180,1779030641000,-500.0,0.00010958,2]
[422522175,1779030641000,-507.46287664,0.00010958,2]
[422522176,1779030641000,-500.0,0.00010958,2]
[422522178,1779030641000,-500.0,0.00010958,2]
[422522179,1779030641000,-500.0,0.00010958,2]
[422522182,1779030641000,-500.0,0.00010958,2]
[422522183,1779030641000,-500.0,0.00010958,2]
[422522185,1779030641000,-500.0,0.00010958,2]
[422522186,1779030641000,-500.0,0.00010958,2]
[422522191,1779030641000,-500.0,0.00010958,2]
[422522192,1779030641000,-500.0,0.00010958,2]
[422522189,1779030641000,-500.0,0.00010958,2]
[422522195,1779030641000,-500.0,0.00010958,2]
[422522173,1779030641000,-500.0,0.00010958,2]
[422522190,1779030641000,-500.0,0.00010958,2]
[422522193,1779030641000,-693.9,0.00010958,2]
[422522200,1779030641000,-85646.905039,0.00010958,2]
[422522204,1779030641000,-500.0,0.00010958,2]
[422522201,1779030641000,-85646.905039,0.00010958,2]
[422522197,1779030641000,-507.06,0.00010958,2]
[422522203,1779030641000,-500.0,0.00010958,2]
[422522202,1779030641000,-500.0,0.00010958,2]
[422522199,1779030641000,-500.0,0.00010958,2]
[422522196,1779030641000,-500.0,0.00010958,2]
[422522184,1779030641000,-562.56,0.00010958,2]
[422522188,1779030641000,-500.0,0.00010958,2]
[422522187,1779030641000,-584.01,0.00010958,2]
[422522194,1779030641000,-500.0,0.00010958,2]
[422522208,1779030641000,-500.0,0.00010958,2]
[422522283,1779030642000,-500.77,0.00010958,2]
[422522285,1779030642000,-500.0,0.00010958,2]
[422522282,1779030642000,-1207.05,0.00010958,2]
[422522281,1779030642000,-500.0,0.00010958,2]
[422522280,1779030642000,-572.94,0.00010958,2]
[422522263,1779030642000,-500.0,0.00010958,2]
[422522276,1779030642000,-500.0,0.00010958,2]
[422522278,1779030642000,-733.27,0.00010958,2]
[422522277,1779030642000,-500.0,0.00010958,2]
[422522275,1779030642000,-562.56,0.00010958,2]
[422522274,1779030642000,-500.0,0.00010958,2]
[422522279,1779030642000,-500.0,0.00010958,2]
[422522295,1779030642000,-500.0,0.00010958,2]
[422522297,1779030642000,-500.0,0.00010958,2]
[422522294,1779030642000,-500.0,0.00010958,2]
[422522291,1779030642000,-3431.37,0.00010958,2]
[422522296,1779030642000,-1885.33,0.00010958,2]
[422522284,1779030642000,-629.57,0.00010958,2]
[422522293,1779030642000,-500.0,0.00010958,2]
[422522286,1779030642000,-500.0,0.00010958,2]
[422522288,1779030642000,-8049.62,0.00010958,2]
[422522292,1779030642000,-513.32258858,0.00010958,2]
[422522289,1779030642000,-485.90449251,0.00010958,2]
[422522287,1779030642000,-541.73,0.00010958,2]
[422522298,1779030642000,-500.0,0.00010958,2]
[422522303,1779030642000,-500.0,0.00010958,2]
[422522300,1779030642000,-500.0,0.00010958,2]
[422522273,1779030642000,-541.73,0.00010958,2]
[422522290,1779030642000,-500.0,0.00010958,2]
[422522262,1779030642000,-500.0,0.00010958,2]
[422522252,1779030642000,-500.0,0.00010958,2]
[422522269,1779030642000,-500.0,0.00010958,2]
[422522247,1779030642000,-811.57,0.00010958,2]
[422522239,1779030642000,-500.0,0.00010958,2]
[422522244,1779030642000,-500.0,0.00010958,2]
[422522248,1779030642000,-571.50520622,0.00010958,2]
[422522245,1779030642000,-500.0,0.00010958,2]
[422522241,1779030642000,-500.0,0.00010958,2]
[422522243,1779030642000,-500.0,0.00010958,2]
[422522240,1779030642000,-1474.68,0.00010958,2]
[422522242,1779030642000,-695.66,0.00010958,2]
[422522246,1779030642000,-500.0,0.00010958,2]
[422522250,1779030642000,-500.0,0.00010958,2]
[422522260,1779030642000,-500.0,0.00010958,2]
[422522249,1779030642000,-500.0,0.00010958,2]
[422522253,1779030642000,-222.51527669,0.00010958,2]
[422522259,1779030642000,-500.0,0.00010958,2]
[422522256,1779030642000,-500.0,0.00010958,2]
[422522258,1779030642000,-2828.53,0.00010958,2]
[422522251,1779030642000,-460.4,0.00010958,2]
[422522254,1779030642000,-500.0,0.00010958,2]
[422522255,1779030642000,-4728.54,0.00010958,2]
[422522257,1779030642000,-500.0,0.00010958,2]
[422522265,1779030642000,-1720.07,0.00010958,2]
[422522271,1779030642000,-330.13900591,0.00010958,2]
[422522270,1779030642000,-500.0,0.00010958,2]
[422522267,1779030642000,-628.75,0.00010958,2]
[422522264,1779030642000,-500.0,0.00010958,2]
[422522261,1779030642000,-704.98,0.00010958,2]
[422522272,1779030642000,-637.72,0.00010958,2]
[422522268,1779030642000,-500.0,0.00010958,2]
[422522266,1779030642000,-955.76,0.00010958,2]
[422522299,1779030642000,-500.0,0.00010958,2]
[422522304,1779030642000,-500.0,0.00010958,2]
[422522308,1779030642000,-500.0,0.00010958,2]
[422522338,1779030642000,-541.79,0.00010958,2]
[422522347,1779030642000,-500.0,0.00010958,2]
[422522345,1779030642000,-470.91730503,0.00010958,2]
[422522344,1779030642000,-2006.76,0.00010958,2]
[422522350,1779030642000,-1387.66,0.00010958,2]
[422522341,1779030642000,-501.1670379,0.00010958,2]
[422522349,1779030642000,-500.0,0.00010958,2]
[422522343,1779030642000,-878.9,0.00010958,2]
[422522340,1779030642000,-500.0,0.00010958,2]
[422522339,1779030642000,-570.90907246,0.00010958,2]
[422522342,1779030642000,-500.0,0.00010958,2]
[422522348,1779030642000,-500.0,0.00010958,2]
[422522346,1779030642000,-572.92,0.00010958,2]
[422522333,1779030642000,-500.0,0.00010958,2]
[422522351,1779030642000,-500.0,0.00010958,2]
[422522354,1779030642000,-9423.16,0.00010958,2]
[422522352,1779030642000,-500.0,0.00010958,2]
[422522358,1779030642000,-500.0,0.00010958,2]
[422522355,1779030642000,-500.0,0.00010958,2]
[422522360,1779030642000,-500.0,0.00010958,2]
[422522356,1779030642000,-500.0,0.00010958,2]
[422522357,1779030642000,-500.0,0.00010958,2]
[422522362,1779030642000,-520.94,0.00010958,2]
[422522363,1779030642000,-500.0,0.00010958,2]
[422522359,1779030642000,-625.12,0.00010958,2]
[422522361,1779030642000,-500.0,0.00010958,2]
[422522364,1779030642000,-500.0,0.00010958,2]
[422522309,1779030642000,-4628.96,0.00010958,2]
[422522353,1779030642000,-500.0,0.00010958,2]
[422522334,1779030642000,-7343.67,0.00010958,2]
[422522365,1779030642000,-588.34641888,0.00010958,2]
[422522330,1779030642000,-1872.7,0.00010958,2]
[422522335,1779030642000,-500.0,0.00010958,2]
[422522307,1779030642000,-521.39,0.00010958,2]
[422522306,1779030642000,-500.0,0.00010958,2]
[422522301,1779030642000,-500.0,0.00010958,2]
[422522302,1779030642000,-500.0,0.00010958,2]
[422522310,1779030642000,-500.0,0.00010958,2]
[422522312,1779030642000,-540.31576427,0.00010958,2]
[422522311,1779030642000,-515.43435356,0.00010958,2]
[422522322,1779030642000,-500.0,0.00010958,2]
[422522323,1779030642000,-500.0,0.00010958,2]
[422522324,1779030642000,-600.29,0.00010958,2]
[422522314,1779030642000,-4500.31,0.00010958,2]
[422522313,1779030642000,-500.0,0.00010958,2]
[422522315,1779030642000,-500.0,0.00010958,2]
[422522305,1779030642000,-500.0,0.00010958,2]
[422522318,1779030642000,-500.0,0.00010958,2]
[422522317,1779030642000,-500.0,0.00010958,2]
[422522332,1779030642000,-500.0,0.00010958,2]
[422522329,1779030642000,-500.0,0.00010958,2]
[422522328,1779030642000,-500.0,0.00010958,2]
[422522325,1779030642000,-500.0,0.00010958,2]
[422522337,1779030642000,-500.0,0.00010958,2]
[422522331,1779030642000,-500.0,0.00010958,2]
[422522336,1779030642000,-500.0,0.00010958,2]
[422522326,1779030642000,-568.95969985,0.00010958,2]
[422522321,1779030642000,-520.94,0.00010958,2]
[422522316,1779030642000,-534.42,0.00010958,2]
[422522319,1779030642000,-500.0,0.00010958,2]
[422522320,1779030642000,-587.36,0.00010958,2]
[422522327,1779030642000,-500.0,0.00010958,2]
[422522420,1779030643000,-500.0,0.00010958,2]
[422522410,1779030643000,-500.0,0.00010958,2]
[422522408,1779030643000,-3883.53,0.00010958,2]
[422522406,1779030643000,-500.0,0.00010958,2]
[422522405,1779030643000,-503.12427942,0.00010958,2]
[422522402,1779030643000,-500.0,0.00010958,2]
[422522400,1779030643000,-500.0,0.00010958,2]
[422522404,1779030643000,-500.0,0.00010958,2]
[422522415,1779030643000,-2106.39,0.00010958,2]
[422522391,1779030643000,-500.0,0.00010958,2]
[422522399,1779030643000,-500.08,0.00010958,2]
[422522395,1779030643000,-771.53,0.00010958,2]
[422522422,1779030643000,-500.0,0.00010958,2]
[422522418,1779030643000,-1301.62,0.00010958,2]
[422522419,1779030643000,-552.38874532,0.00010958,2]
[422522416,1779030643000,-3984.54,0.00010958,2]
[422522417,1779030643000,-500.0,0.00010958,2]
[422522414,1779030643000,-500.0,0.00010958,2]
[422522421,1779030643000,-4519.73,0.00010958,2]
[422522423,1779030643000,-500.0,0.00010958,2]
[422522424,1779030643000,-500.0,0.00010958,2]
[422522425,1779030643000,-500.0,0.00010958,2]
[422522426,1779030643000,-500.0,0.00010958,2]
[422522427,1779030643000,-500.0,0.00010958,2]
[422522403,1779030643000,-500.0,0.00010958,2]
[422522429,1779030643000,-637.39,0.00010958,2]
[422522412,1779030643000,-500.0,0.00010958,2]
[422522392,1779030643000,-500.0,0.00010958,2]
[422522379,1779030643000,-500.0,0.00010958,2]
[422522394,1779030643000,-500.0,0.00010958,2]
[422522428,1779030643000,-500.0,0.00010958,2]
[422522375,1779030643000,-4703.9,0.00010958,2]
[422522376,1779030643000,-500.0,0.00010958,2]
[422522377,1779030643000,-500.0,0.00010958,2]
[422522372,1779030643000,-544.00367871,0.00010958,2]
[422522368,1779030643000,-500.0,0.00010958,2]
[422522374,1779030643000,-500.0,0.00010958,2]
[422522369,1779030643000,-708.0,0.00010958,2]
[422522370,1779030643000,-1241.29,0.00010958,2]
[422522371,1779030643000,-500.0,0.00010958,2]
[422522366,1779030643000,-2075.67,0.00010958,2]
[422522367,1779030643000,-632.84,0.00010958,2]
[422522397,1779030643000,-500.0,0.00010958,2]
[422522373,1779030643000,-500.0,0.00010958,2]
[422522384,1779030643000,-505.17,0.00010958,2]
[422522386,1779030643000,-2151.48,0.00010958,2]
[422522381,1779030643000,-500.54919831,0.00010958,2]
[422522388,1779030643000,-909.47,0.00010958,2]
[422522385,1779030643000,-521.32,0.00010958,2]
[422522389,1779030643000,-500.0,0.00010958,2]
[422522383,1779030643000,-500.0,0.00010958,2]
[422522382,1779030643000,-500.0,0.00010958,2]
[422522380,1779030643000,-500.0,0.00010958,2]
[422522387,1779030643000,-500.0,0.00010958,2]
[422522393,1779030643000,-500.0,0.00010958,2]
[422522390,1779030643000,-500.0,0.00010958,2]
[422522378,1779030643000,-500.0,0.00010958,2]
[422522430,1779030643000,-604.3,0.00010958,2]
[422522431,1779030643000,-3450.43,0.00010958,2]
[422522472,1779030643000,-637.49368929,0.00010958,2]
[422522467,1779030643000,-500.0,0.00010958,2]
[422522465,1779030643000,-500.0,0.00010958,2]
[422522473,1779030643000,-510.02074876,0.00010958,2]
[422522480,1779030643000,-501.96408508,0.00010958,2]
[422522470,1779030643000,-654.26,0.00010958,2]
[422522474,1779030643000,-500.0,0.00010958,2]
[422522475,1779030643000,-2530.81,0.00010958,2]
[422522479,1779030643000,-466.9909459,0.00010958,2]
[422522471,1779030643000,-500.0,0.00010958,2]
[422522476,1779030643000,-500.0,0.00010958,2]
[422522478,1779030643000,-500.0,0.00010958,2]
[422522477,1779030643000,-8001.54,0.00010958,2]
[422522468,1779030643000,-502.94,0.00010958,2]
[422522482,1779030643000,-500.0,0.00010958,2]
[422522481,1779030643000,-500.0,0.00010958,2]
[422522493,1779030643000,-3260.3843,0.00010958,2]
[422522483,1779030643000,-500.0,0.00010958,2]
[422522484,1779030643000,-500.0,0.00010958,2]
[422522486,1779030643000,-500.0,0.00010958,2]
[422522489,1779030643000,-500.0,0.00010958,2]
[422522490,1779030643000,-1100.08,0.00010958,2]
[422522488,1779030643000,-646.24,0.00010958,2]
[422522485,1779030643000,-1037.24,0.00010958,2]
[422522487,1779030643000,-500.0,0.00010958,2]
[422522491,1779030643000,-500.0,0.00010958,2]
[422522434,1779030643000,-500.0,0.00010958,2]
[422522492,1779030643000,-3260.3843,0.00010958,2]
[422522462,1779030643000,-583.39,0.00010958,2]
[422522469,1779030643000,-500.0,0.00010958,2]
[422522463,1779030643000,-2946.15,0.00010958,2]
[422522438,1779030643000,-500.0,0.00010958,2]
[422522436,1779030643000,-500.0,0.00010958,2]
[422522441,1779030643000,-194.4401741,0.00010958,2]
[422522439,1779030643000,-500.0,0.00010958,2]
[422522435,1779030643000,-604.24,0.00010958,2]
[422522440,1779030643000,-500.0,0.00010958,2]
[422522437,1779030643000,-500.0,0.00010958,2]
[422522442,1779030643000,-2680.23,0.00010958,2]
[422522461,1779030643000,-500.0,0.00010958,2]
[422522455,1779030643000,-562.57,0.00010958,2]
[422522456,1779030643000,-500.0,0.00010958,2]
[422522447,1779030643000,-3713.96,0.00010958,2]
[422522443,1779030643000,-738.42,0.00010958,2]
[422522444,1779030643000,-500.0,0.00010958,2]
[422522448,1779030643000,-697.34,0.00010958,2]
[422522459,1779030643000,-500.0,0.00010958,2]
[422522446,1779030643000,-688.39,0.00010958,2]
[422522450,1779030643000,-500.0,0.00010958,2]
[422522452,1779030643000,-584.65,0.00010958,2]
[422522453,1779030643000,-7083.66,0.00010958,2]
[422522449,1779030643000,-500.0,0.00010958,2]
[422522454,1779030643000,-500.0,0.00010958,2]
[422522457,1779030643000,-500.0,0.00010958,2]
[422522464,1779030643000,-582.97,0.00010958,2]
[422522458,1779030643000,-500.0,0.00010958,2]
[422522460,1779030643000,-621.56575179,0.00010958,2]
[422522466,1779030643000,-522.51,0.00010958,2]
[422522451,1779030643000,-500.0,0.00010958,2]
[422522549,1779030644000,-881.57,0.00010958,2]
[422522527,1779030644000,-500.0,0.00010958,2]
[422522541,1779030644000,-583.39,0.00010958,2]
[422522551,1779030644000,-500.0,0.00010958,2]